fUSD/lending_fUSD_20241106
["ID","MTS","AMOUNT","RATE_DAILY","PERIOD"]
[341485753,1730921459431,-500.0,0.00027671,2]
[341485754,1730921459440,-1183.67,0.00027671,2]
[341485755,1730921459449,-1378.1,0.00027671,2]
[341485756,1730921459460,-987.2,0.00027671,2]
[341485757,1730921459469,-1215.89,0.00027671,2]
[341485758,1730921459479,-500.0,0.00027671,2]
[341485759,1730921459489,-500.0,0.00027671,2]
[341485760,1730921459498,-1085.08,0.00027671,2]
[341485761,1730921459507,-583.57,0.00027671,2]
[341485762,1730921459518,-500.0,0.00027671,2]
[341485763,1730921459528,-565.87,0.00027671,2]
[341485764,1730921459537,-2268.83,0.00027671,2]
[341485765,1730921459547,-500.0,0.00027671,2]
[341485766,1730921459556,-2467.89,0.00027671,2]
[341485767,1730921459566,-500.0,0.00027671,2]
[341485768,1730921459575,-999.5,0.00027671,2]
[341485769,1730921459584,-500.0,0.00027671,2]
[341485770,1730921459593,-500.0,0.00027671,2]
[341485771,1730921459602,-500.0,0.00027671,2]
[341485772,1730921459611,-1125.23,0.00027671,2]
[341485773,1730921459621,-500.0,0.00027671,2]
[341485774,1730921459631,-500.0,0.00027671,2]
[341485775,1730921459641,-500.0,0.00027671,2]
[341485776,1730921459650,-1387.21,0.00027671,2]
[341485777,1730921459659,-500.0,0.00027671,2]
[341485778,1730921459669,-500.0,0.00027671,2]
[341485779,1730921459678,-1704.41,0.00027671,2]
[341485780,1730921459687,-500.0,0.00027671,2]
[341485781,1730921459697,-500.0,0.00027671,2]
[341485782,1730921459706,-1680.82,0.00027671,2]
[341485783,1730921459716,-1852.4,0.00027671,2]
[341485784,1730921459726,-500.0,0.00027671,2]
[341485785,1730921459735,-2150.03,0.00027671,2]
[341485786,1730921459744,-500.0,0.00027671,2]
[341485787,1730921459754,-500.0,0.00027671,2]
[341485788,1730921459765,-658.13,0.00027671,2]
[341485789,1730921459774,-1103.77,0.00027671,2]
[341485790,1730921459783,-500.0,0.00027671,2]
[341485791,1730921459792,-500.0,0.00027671,2]
[341485792,1730921459801,-811.93,0.00027671,2]
[341485793,1730921459810,-548.54,0.00027671,2]
[341485794,1730921459819,-500.0,0.00027671,2]
[341485795,1730921459829,-1710.85,0.00027671,2]
[341485796,1730921459838,-500.0,0.00027671,2]
[341485797,1730921459847,-534.36282416,0.00027671,2]
[341485798,1730921459857,-528.82,0.00027671,2]
[341485799,1730921459866,-4369.0,0.00027671,2]
[341485800,1730921459875,-500.0,0.00027671,2]
[341485801,1730921459885,-500.0,0.00027671,2]
[341485802,1730921459895,-500.0,0.00027671,2]
[341485803,1730921459904,-500.0,0.00027671,2]
[341485804,1730921459914,-500.0,0.00027671,2]
[341485805,1730921460237,-500.0,0.00027671,2]
[341485806,1730921460251,-500.0,0.00027671,2]
[341485807,1730921460261,-531.9,0.00027671,2]
[341485808,1730921460272,-3636.14,0.00027671,2]
[341485809,1730921460281,-500.0,0.00027671,2]
[341485810,1730921460290,-91.32158337,0.00027671,2]
[341485811,1730921460304,-642.82841663,0.00027671,2]
[341485812,1730921460315,-947.52,0.00027671,2]
[341485813,1730921460324,-500.0,0.00027671,2]
[341485814,1730921460334,-500.0,0.00027671,2]
[341485815,1730921460343,-500.0,0.00027671,2]
[341485816,1730921460353,-500.0,0.00027671,2]
[341485817,1730921460362,-649.37,0.00027671,2]
[341485818,1730921460371,-500.0,0.00027671,2]
[341485819,1730921460381,-257.76758337,0.00027671,2]
[341485820,1730921460578,-1328.89,0.00027397,2]
[341485821,1730921460588,-706.72241663,0.00027671,2]
[341485822,1730921460598,-500.0,0.00027671,2]
[341485823,1730921460607,-1366.54,0.00027671,2]
[341485824,1730921460617,-500.0,0.00027671,2]
[341485825,1730921460627,-500.0,0.00027671,2]
[341485826,1730921460637,-810.41,0.00027671,2]
[341485827,1730921460647,-638.02,0.00027671,2]
[341485828,1730921460657,-500.0,0.00027671,2]
[341485829,1730921460667,-3425.21,0.00027671,2]
[341485830,1730921460677,-500.0,0.00027671,2]
[341485831,1730921460686,-500.0,0.00027671,2]
[341485832,1730921460696,-659.18,0.00027671,2]
[341485833,1730921460707,-3269.98,0.00027671,2]
[341485834,1730921460717,-1439.28,0.00027671,2]
[341485835,1730921460727,-960.99,0.00027671,2]
[341485836,1730921460736,-500.0,0.00027671,2]
[341485837,1730921460746,-500.0,0.00027671,2]
[341485838,1730921460756,-500.0,0.00027671,2]
[341485839,1730921460767,-500.0,0.00027671,2]
[341485840,1730921460776,-500.0,0.00027671,2]
[341485841,1730921460785,-1109.87,0.00027671,2]
[341485842,1730921460795,-500.0,0.00027671,2]
[341485843,1730921460804,-500.0,0.00027671,2]
[341485844,1730921460815,-1817.85,0.00027671,2]
[341485845,1730921460824,-500.0,0.00027671,2]
[341485846,1730921460834,-500.0,0.00027671,2]
[341485847,1730921460843,-1385.27,0.00027671,2]
[341485848,1730921460853,-500.0,0.00027671,2]
[341485849,1730921460863,-500.0,0.00027671,2]
[341485850,1730921460873,-500.0,0.00027671,2]
[341485851,1730921460882,-500.0,0.00027671,2]
[341485852,1730921460892,-500.0,0.00027671,2]
[341485853,1730921460902,-500.0,0.00027671,2]
[341485854,1730921460911,-964.81,0.00027671,2]
[341485855,1730921460921,-304.15038524,0.00027671,2]
[341485856,1730921460930,-500.0,0.00027671,2]
[341485857,1730921460940,-500.0,0.00027671,2]
[341485858,1730921460950,-500.0,0.00027671,2]
[341485859,1730921460959,-500.0,0.00027671,2]
[341485860,1730921460972,-500.0,0.00027671,2]
[341485861,1730921460982,-656.8,0.00027671,2]
[341485862,1730921460992,-500.0,0.00027671,2]
[341485863,1730921461002,-533.68759068,0.00027671,2]
[341485864,1730921461012,-564.57964895,0.00027671,2]
[341485865,1730921461025,-500.0,0.00027671,2]
[341485866,1730921461035,-1993.87,0.00027671,2]
[341485867,1730921461045,-575.86,0.00027671,2]
[341485868,1730921461058,-500.0,0.00027671,2]
[341485869,1730921461069,-500.0,0.00027671,2]
[341485870,1730921461079,-500.0,0.00027671,2]
[341485871,1730921461089,-1345.61,0.00027671,2]
[341485872,1730921461099,-500.0,0.00027671,2]
[341485873,1730921461109,-500.0,0.00027671,2]
[341485874,1730921461118,-551.81667792,0.00027671,2]
[341485875,1730921461128,-569.39,0.00027671,2]
[341485876,1730921461138,-1439.08,0.00027671,2]
[341485877,1730921461147,-1564.82,0.00027671,2]
[341485878,1730921461157,-809.43,0.00027671,2]
[341485879,1730921461168,-1046.46,0.00027671,2]
[341485880,1730921461177,-1328.89,0.00027671,2]
[341485881,1730921461187,-399.42687174,0.00027673,5]
[341485882,1730921461196,-500.0,0.00027673,5]
[341485883,1730921461206,-500.0,0.00027673,5]
[341485884,1730921461215,-1500.0,0.000277,10]
[341485885,1730921461224,-2000.0,0.000278,10]
[341485886,1730921461233,-13438.32337214,0.00027808,2]
[341485887,1730921461243,-2500.0,0.000279,10]
[341485888,1730921461253,-500.0,0.00027944,2]
[341485889,1730921461263,-500.0,0.00027944,2]
[341485890,1730921461274,-500.0,0.00027944,2]
[341485891,1730921461284,-500.0,0.00027944,2]
[341485892,1730921461294,-584.22,0.00027944,2]
[341485893,1730921461303,-500.0,0.00027944,2]
[341485894,1730921461313,-500.0,0.00027944,2]
[341485895,1730921461323,-527.03,0.00027944,2]
[341485896,1730921461333,-527.03,0.00027944,2]
[341485897,1730921461342,-527.03,0.00027944,2]
[341485898,1730921461352,-541.69960072,0.00027945,2]
[341485899,1730921461362,-500.0,0.00027945,2]
[341485900,1730921461371,-500.0,0.00027945,2]
[341485901,1730921461382,-500.0,0.00027945,2]
[341485902,1730921461392,-500.0,0.00027945,2]
[341485903,1730921461402,-500.0,0.00027945,2]
[341485904,1730921461412,-500.0,0.00027945,2]
[341485905,1730921461421,-500.0,0.00027945,2]
[341485906,1730921461431,-500.0,0.00027945,2]
[341485907,1730921461443,-500.0,0.00027945,2]
[341485908,1730921461453,-500.0,0.00027945,2]
[341485909,1730921461463,-500.0,0.00027945,2]
[341485910,1730921461473,-500.0,0.00027945,2]
[341485911,1730921461483,-500.0,0.00027945,2]
[341485912,1730921461493,-500.0,0.00027945,2]
[341485913,1730921461502,-500.0,0.00027945,2]
[341485914,1730921461512,-500.0,0.00027945,2]
[341485915,1730921461527,-500.0,0.00027945,2]
[341485916,1730921461537,-500.0,0.00027945,2]
[341485917,1730921461546,-500.0,0.00027945,2]
[341485918,1730921461555,-500.0,0.00027945,2]
[341485919,1730921461565,-359.2340065,0.00027945,2]
[341485920,1730921461575,-500.0,0.00027945,2]
[341485921,1730921461585,-1037.34,0.00027945,2]
[341485922,1730921461595,-500.0,0.00027945,2]
[341485923,1730921461604,-626.12007575,0.00027945,2]
[341485924,1730921461614,-500.0,0.00027945,2]
[341485925,1730921461623,-500.0,0.00027945,2]
[341485926,1730921461634,-250.0,0.00027945,2]
[341485927,1730921461643,-500.0,0.00027945,2]
[341485928,1730921461652,-500.0,0.00027945,2]
[341485929,1730921461662,-508.24229365,0.00027945,2]
[341485930,1730921461671,-500.0,0.00027945,2]
[341485931,1730921461681,-500.0,0.00027945,2]
[341485932,1730921461691,-1227.75,0.00027945,2]
[341485933,1730921461701,-606.68883758,0.00027945,2]
[341485934,1730921461711,-500.0,0.00027945,2]
[341485935,1730921461721,-500.0,0.00027945,2]
[341485936,1730921461731,-500.0,0.00027945,2]
[341485937,1730921461741,-500.0,0.00027945,2]
[341485938,1730921461750,-184.4254257,0.00027945,2]
[341485939,1730921461760,-541.18463823,0.00027945,2]
[341485940,1730921461771,-500.0,0.00027945,2]
[341485941,1730921461781,-500.0,0.00027945,2]
[341485942,1730921461791,-500.0,0.00027945,2]
[341485943,1730921461801,-500.0,0.00027945,2]
[341485944,1730921461810,-500.0,0.00027945,2]
[341485945,1730921461821,-500.0,0.00027945,2]
[341485946,1730921461830,-500.0,0.00027945,2]
[341485947,1730921461840,-500.0,0.00027945,2]
[341485948,1730921461851,-500.0,0.00027945,2]
[341485949,1730921461860,-686.95,0.00027945,2]
[341485950,1730921461870,-500.0,0.00027945,2]
[341485951,1730921461879,-500.0,0.00027945,2]
[341485952,1730921461889,-500.0,0.00027945,2]
[341485953,1730921461899,-500.0,0.00027945,2]
[341485954,1730921461908,-605.15096207,0.00027945,2]
[341485955,1730921461918,-500.0,0.00027945,2]
[341485956,1730921461928,-500.0,0.00027945,2]
[341485957,1730921461938,-500.0,0.00027945,2]
[341485958,1730921461949,-535.39735624,0.00027945,2]
[341485959,1730921461959,-534.08413651,0.00027945,2]
[341485960,1730921461972,-1091.85,0.00027945,2]
[341485961,1730921461982,-500.0,0.00027945,2]
[341485962,1730921461991,-521.84567276,0.00027945,2]
[341485963,1730921462002,-458.73287736,0.00027945,2]
[341485964,1730921462012,-500.0,0.00027945,2]
[341485965,1730921462023,-500.0,0.00027945,2]
[341485966,1730921462033,-500.0,0.00027945,2]
[341485967,1730921462044,-500.0,0.00027945,2]
[341485968,1730921462053,-500.0,0.00027945,2]
[341485969,1730921462063,-745.47,0.00027945,2]
[341485970,1730921462072,-500.0,0.00027945,2]
[341485971,1730921462081,-500.0,0.00027945,2]
[341485972,1730921462090,-500.0,0.00027945,2]
[341485973,1730921462099,-500.0,0.00027945,2]
[341485974,1730921462109,-638.43471747,0.00027945,2]
[341485975,1730921462118,-500.0,0.00027945,2]
[341485976,1730921462127,-500.0,0.00027945,2]
[341485977,1730921462137,-500.0,0.00027945,2]
[341485978,1730921462146,-500.0,0.00027945,2]
[341485979,1730921462156,-164.90485506,0.00027945,2]
[341485980,1730921462165,-898.65,0.00027945,2]
[341485981,1730921462174,-605.47,0.00027945,2]
[341485982,1730921462184,-500.0,0.00027945,2]
[341485983,1730921462193,-915.82,0.00027945,2]
[341485984,1730921462203,-500.0,0.00027945,2]
[341485985,1730921462212,-500.0,0.00027945,2]
[341485986,1730921462221,-501.77,0.00027945,2]
[341485987,1730921462231,-500.0,0.00027945,2]
[341485988,1730921462240,-520.15549604,0.00027945,2]
[341485989,1730921462251,-500.0,0.00027945,2]
[341485990,1730921462261,-500.0,0.00027945,2]
[341485991,1730921462271,-500.0,0.00027945,2]
[341485992,1730921462281,-500.0,0.00027945,2]
[341485993,1730921462291,-215.4,0.00027945,2]
[341485994,1730921462301,-500.0,0.00027945,2]
[341485995,1730921462312,-500.0,0.00027945,2]
[341485996,1730921462322,-500.0,0.00027945,2]
[341485997,1730921462331,-500.0,0.00027945,2]
[341485998,1730921462340,-500.0,0.00027945,2]
[341485999,1730921462350,-500.0,0.00027945,2]
[341486000,1730921462359,-559.3073895,0.00027945,2]
[341486001,1730921462369,-500.0,0.00027945,2]
[341486002,1730921462379,-500.0,0.00027945,2]
[341486003,1730921462389,-500.0,0.00027945,2]
[341486004,1730921462399,-500.0,0.00027945,2]
[341486005,1730921462409,-196.39233629,0.00027945,2]
[341486006,1730921462418,-500.0,0.00027945,2]
[341486007,1730921462427,-500.0,0.00027945,2]
[341486008,1730921462437,-500.0,0.00027945,2]
[341486009,1730921462446,-505.45280502,0.00027945,2]
[341486010,1730921462456,-500.0,0.00027945,2]
[341486011,1730921462465,-500.0,0.00027945,2]
[341486012,1730921462475,-500.0,0.00027945,2]
[341486013,1730921462485,-500.0,0.00027945,2]
[341486014,1730921462494,-500.0,0.00027945,2]
[341486015,1730921462503,-500.0,0.00027945,2]
[341486016,1730921462513,-500.0,0.00027945,2]
[341486017,1730921462523,-500.0,0.00027945,2]
[341486018,1730921462533,-500.0,0.00027945,2]
[341486019,1730921462624,-500.0,0.00027945,2]
[341486020,1730921462634,-500.0,0.00027945,2]
[341486021,1730921462643,-500.0,0.00027945,2]
[341486022,1730921462653,-500.0,0.00027945,2]
[341486023,1730921462662,-500.0,0.00027945,2]
[341486024,1730921462671,-170.82128956,0.00027945,2]
[341486025,1730921462682,-500.0,0.00027945,2]
[341486026,1730921462691,-639.98123419,0.00027945,2]
[341486027,1730921462702,-500.0,0.00027945,2]
[341486028,1730921462712,-500.0,0.00027945,2]
[341486029,1730921462722,-500.0,0.00027945,2]
[341486030,1730921462731,-504.05567212,0.00027945,2]
[341486031,1730921462741,-500.0,0.00027945,2]
[341486032,1730921462751,-500.0,0.00027945,2]
[341486033,1730921462762,-500.0,0.00027945,2]
[341486034,1730921462772,-500.0,0.00027945,2]
[341486035,1730921462782,-500.0,0.00027945,2]
[341486036,1730921462793,-500.0,0.00027945,2]
[341486037,1730921462803,-500.0,0.00027945,2]
[341486038,1730921462813,-500.0,0.00027945,2]
[341486039,1730921462823,-1602.4,0.00027945,2]
[341486040,1730921462833,-502.67915862,0.00027945,2]
[341486041,1730921462842,-500.0,0.00027945,2]
[341486042,1730921462851,-114.90309012,0.00027945,2]
[341486043,1730921462918,-385.09690988,0.00027945,2]
[341486044,1730921462927,-500.0,0.00027945,2]
[341486045,1730921462936,-500.0,0.00027945,2]
[341486046,1730921462945,-70.75614012,0.00027945,2]
[341486047,1730921462957,-429.24385988,0.00027945,2]
[341486048,1730921462966,-85.22032831,0.00027945,2]
[341486049,1730921462980,-414.77967169,0.00027945,2]
[341486050,1730921462989,-841.21,0.00027945,2]
[341486051,1730921462998,-500.0,0.00027945,7]
[341486052,1730921463007,-1310.02,0.00027945,2]
[341486053,1730921463017,-500.0,0.00027945,2]
[341486054,1730921463026,-103.10554367,0.00027945,2]
[341486055,1730921463038,-396.89445633,0.00027945,2]
[341486056,1730921463050,-99.1817881,0.00027945,2]
[341486057,1730921463111,-44.78403829,0.00027945,2]
[341486058,1730921463123,-412.38417361,0.00027945,2]
[341486059,1730921463132,-500.0,0.00027945,2]
[341486060,1730921463143,-500.0,0.00027945,2]
[341486061,1730921463153,-500.0,0.00027945,2]
[341486062,1730921463163,-1787.47,0.00027945,2]
[341486063,1730921463172,-500.0,0.00027945,2]
[341486064,1730921463182,-500.0,0.00027945,2]
[341486065,1730921463192,-453.34067639,0.00027945,2]
[341486066,1730921463267,-500.0,0.00027397,2]
[341486067,1730921463277,-418.40932361,0.00027945,2]
[341486068,1730921463287,-500.0,0.00027945,2]
[341486069,1730921463296,-500.0,0.00027945,2]
[341486070,1730921463306,-500.0,0.00027945,2]
[341486071,1730921463315,-1794.4,0.00027945,2]
[341486072,1730921463325,-573.3836011,0.00027945,2]
[341486073,1730921463335,-59.59907422,0.00027945,2]
[341486074,1730921463348,-411.78939445,0.00027945,2]
[341486075,1730921463359,-28.61153133,0.00027945,2]
[341486076,1730921463369,-640.34,0.00027945,2]
[341486077,1730921463378,-300.0,0.00027945,2]
[341486078,1730921463387,-528.41874661,0.00027945,2]
[341486079,1730921463397,-695.51,0.00027945,2]
[341486080,1730921463407,-1995.13,0.00027945,2]
[341486081,1730921463416,-220.32,0.00027945,2]
[341486082,1730921463426,-500.0,0.00027945,2]
[341486083,1730921463435,-539.49,0.00027945,2]
[341486084,1730921463445,-500.0,0.00027945,2]
[341486085,1730921463455,-1092.94,0.00027945,2]
[341486086,1730921463464,-500.0,0.00027945,2]
[341486087,1730921463474,-500.0,0.00027945,2]
[341486088,1730921463483,-500.0,0.00027945,2]
[341486089,1730921463493,-500.0,0.00027945,2]
[341486090,1730921463502,-500.0,0.00027945,2]
[341486091,1730921463511,-514.06,0.00027945,2]
[341486092,1730921463522,-2566.2,0.00027945,2]
[341486093,1730921463531,-500.0,0.00027945,2]
[341486094,1730921463540,-500.0,0.00027945,2]
[341486095,1730921463550,-500.0,0.00027945,2]
[341486096,1730921463559,-500.0,0.00027945,2]
[341486097,1730921463568,-500.0,0.00027945,2]
[341486098,1730921463577,-500.0,0.00027945,2]
[341486099,1730921463587,-500.0,0.00027945,2]
[341486100,1730921463596,-500.0,0.00027945,2]
[341486101,1730921463606,-500.0,0.00027945,2]
[341486102,1730921463615,-500.0,0.00027945,2]
[341486103,1730921463625,-2885.01,0.00027945,2]
[341486104,1730921463634,-500.0,0.00027945,2]
[341486105,1730921463643,-500.0,0.00027945,2]
[341486106,1730921463653,-1577.88,0.00027945,2]
[341486107,1730921463662,-500.0,0.00027945,2]
[341486108,1730921463671,-721.21,0.00027945,2]
[341486109,1730921463680,-500.0,0.00027945,2]
[341486110,1730921463690,-500.0,0.00027945,2]
[341486111,1730921463700,-500.0,0.00027945,2]
[341486112,1730921463709,-500.0,0.00027945,2]
[341486113,1730921463720,-500.0,0.00027945,2]
[341486114,1730921463729,-500.0,0.00027945,2]
[341486115,1730921463739,-1272.35,0.00027945,2]
[341486116,1730921463748,-500.0,0.00027945,2]
[341486117,1730921463757,-503.32094129,0.00027945,2]
[341486118,1730921463767,-500.0,0.00027945,2]
[341486119,1730921463776,-775.11,0.00027945,2]
[341486120,1730921463786,-532.72,0.00027945,2]
[341486121,1730921463795,-515.53472888,0.00027945,2]
[341486122,1730921463804,-500.0,0.00027945,2]
[341486123,1730921463814,-500.0,0.00027945,2]
[341486124,1730921463823,-548.21354805,0.00027945,2]
[341486125,1730921463833,-643.68268456,0.00027945,2]
[341486126,1730921463843,-522.1,0.00027945,2]
[341486127,1730921463852,-500.0,0.00027945,2]
[341486128,1730921463862,-2062.96,0.00027945,2]
[341486129,1730921463871,-500.0,0.00027945,2]
[341486130,1730921463881,-1149.08,0.00027945,2]
[341486131,1730921463890,-500.0,0.00027945,2]
[341486132,1730921463899,-500.0,0.00027945,2]
[341486133,1730921463909,-500.0,0.00027945,2]
[341486134,1730921463919,-500.0,0.00027945,2]
[341486135,1730921463928,-500.0,0.00027945,2]
[341486136,1730921463938,-472.09697566,0.00027945,2]
[341486137,1730921463947,-500.0,0.00027945,2]
[341486138,1730921463956,-500.0,0.00027945,2]
[341486139,1730921463966,-500.0,0.00027945,2]
[341486140,1730921463979,-500.0,0.00027945,2]
[341486141,1730921463988,-1125.18,0.00027945,2]
[341486142,1730921463997,-1347.96,0.00027945,2]
[341486143,1730921464007,-1438.75,0.00027945,2]
[341486144,1730921464019,-500.0,0.00027945,2]
[341486145,1730921464029,-500.0,0.00027945,2]
[341486146,1730921464039,-500.0,0.00027945,2]
[341486147,1730921464050,-500.0,0.00027945,2]
[341486148,1730921464059,-317.43738415,0.00027945,2]
[341486149,1730921464069,-500.0,0.00027945,2]
[341486150,1730921464078,-636.57,0.00027945,2]
[341486151,1730921464088,-500.0,0.00027945,2]
[341486152,1730921464097,-500.0,0.00027945,2]
[341486153,1730921464107,-964.35,0.00027945,2]
[341486154,1730921464117,-534.71,0.00027945,2]
[341486155,1730921464127,-500.0,0.00027945,2]
[341486156,1730921464136,-1150.14,0.00027945,2]
[341486157,1730921464146,-500.0,0.00027945,2]
[341486158,1730921464156,-562.26,0.00027945,2]
[341486159,1730921464166,-649.34,0.00027945,2]
[341486160,1730921464176,-500.0,0.00027945,2]
[341486161,1730921464185,-500.0,0.00027945,2]
[341486162,1730921464195,-1422.3,0.00027945,2]
[341486163,1730921464204,-514.55831927,0.00027945,2]
[341486164,1730921464213,-500.0,0.00027945,2]
[341486165,1730921464222,-1232.97,0.00027945,2]
[341486166,1730921464232,-500.0,0.00027945,2]
[341486167,1730921464241,-2211.04,0.00027945,2]
[341486168,1730921464250,-500.0,0.00027945,2]
[341486169,1730921464260,-500.0,0.00027945,2]
[341486170,1730921464271,-172.95545529,0.00027945,2]
[341486171,1730921464281,-500.0,0.00027945,2]
[341486172,1730921464291,-500.0,0.00027945,2]
[341486173,1730921464300,-500.0,0.00027945,2]
[341486174,1730921464310,-500.0,0.00027945,2]
[341486175,1730921464319,-1980.46,0.00027945,2]
[341486176,1730921464329,-943.32,0.00027945,2]
[341486177,1730921464338,-500.0,0.00027945,2]
[341486178,1730921464350,-500.0,0.00027945,2]
[341486179,1730921464359,-500.0,0.00027945,2]
[341486180,1730921464369,-500.0,0.00027945,2]
[341486181,1730921464379,-500.0,0.00027945,2]
[341486182,1730921464389,-604.62,0.00027945,2]
[341486183,1730921464399,-500.0,0.00027945,2]
[341486184,1730921464408,-500.0,0.00027945,2]
[341486185,1730921464419,-500.0,0.00027945,2]
[341486186,1730921464428,-500.0,0.00027945,2]
[341486187,1730921464438,-2092.95,0.00027945,2]
[341486188,1730921464447,-500.0,0.00027945,2]
[341486189,1730921464457,-500.0,0.00027945,2]
[341486190,1730921464466,-500.0,0.00027945,2]
[341486191,1730921464475,-500.0,0.00027945,2]
[341486192,1730921464484,-500.0,0.00027945,2]
[341486193,1730921464494,-500.0,0.00027945,2]
[341486194,1730921464503,-500.0,0.00027945,2]
[341486195,1730921464513,-535.70950895,0.00027945,2]
[341486196,1730921464525,-500.0,0.00027945,2]
[341486197,1730921464535,-500.0,0.00027945,2]
[341486198,1730921464544,-500.0,0.00027945,2]
[341486199,1730921464553,-526.94,0.00027945,2]
[341486200,1730921464562,-500.0,0.00027945,2]
[341486201,1730921464572,-500.0,0.00027945,2]
[341486202,1730921464582,-1046.06,0.00027945,2]
[341486203,1730921464591,-500.0,0.00027945,2]
[341486204,1730921464601,-500.0,0.00027945,2]
[341486205,1730921464610,-2029.85,0.00027945,2]
[341486206,1730921464619,-1176.73,0.00027945,2]
[341486207,1730921464629,-546.41842063,0.00027945,2]
[341486208,1730921464638,-152.30521338,0.00027945,2]
[341486209,1730921464647,-500.0,0.00027945,2]
[341486210,1730921464656,-500.0,0.00027945,2]
[341486211,1730921464665,-500.0,0.00027945,2]
[341486212,1730921464674,-500.0,0.00027945,2]
[341486213,1730921464683,-500.0,0.00027945,2]
[341486214,1730921464693,-530.0172515,0.00027945,2]
[341486215,1730921464702,-500.0,0.00027945,2]
[341486216,1730921464711,-500.0,0.00027945,2]
[341486217,1730921464720,-802.3,0.00027945,2]
[341486218,1730921464730,-612.07,0.00027945,2]
[341486219,1730921464739,-945.3,0.00027945,2]
[341486220,1730921464748,-500.0,0.00027945,2]
[341486221,1730921464758,-500.0,0.00027945,2]
[341486222,1730921464769,-543.72719765,0.00027945,2]
[341486223,1730921464779,-500.0,0.00027945,2]
[341486224,1730921464789,-500.0,0.00027945,2]
[341486225,1730921464798,-500.0,0.00027945,2]
[341486226,1730921464808,-1364.22,0.00027945,2]
[341486227,1730921464818,-500.0,0.00027945,2]
[341486228,1730921464828,-702.11,0.00027945,2]
[341486229,1730921464837,-500.0,0.00027945,2]
[341486230,1730921464847,-501.81045613,0.00027945,2]
[341486231,1730921464856,-629.9,0.00027945,2]
[341486232,1730921464866,-500.0,0.00027945,2]
[341486233,1730921464876,-500.0,0.00027945,2]
[341486234,1730921464885,-500.0,0.00027945,2]
[341486235,1730921464894,-500.0,0.00027945,2]
[341486236,1730921464903,-500.0,0.00027945,2]
[341486237,1730921464915,-500.0,0.00027945,2]
[341486238,1730921464924,-176.92954998,0.00027945,2]
[341486239,1730921464933,-500.0,0.00027945,2]
[341486240,1730921464943,-554.82230675,0.00027945,2]
[341486241,1730921464952,-500.0,0.00027945,2]
[341486242,1730921464962,-500.0,0.00027945,2]
[341486243,1730921464974,-500.0,0.00027945,2]
[341486244,1730921464984,-500.0,0.00027945,2]
[341486245,1730921464993,-500.0,0.00027945,2]
[341486246,1730921465002,-500.0,0.00027945,2]
[341486247,1730921465011,-500.0,0.00027945,2]
[341486248,1730921465023,-500.0,0.00027945,2]
[341486249,1730921465032,-500.0,0.00027945,2]
[341486250,1730921465041,-2282.98,0.00027945,2]
[341486251,1730921465052,-500.0,0.00027945,2]
[341486252,1730921465062,-500.0,0.00027945,2]